bitfinex/quotes_SOLUSD_20250126
["timestamp","ask_amount","ask_price","bid_price","bid_amount"]
[1737851537030,75.9,256.1,256.08,0.063]
[1737851538145,76.26123839,256.09,256.08,0.063]
[1737851538315,26.13812239,256.09,256.08,0.063]
[1737851538513,20.0,256.06,255.91,5.4079]
[1737851538832,157.16123839,256.05,255.91,5.4079]
[1737851539134,156.8,256.05,255.91,5.4079]
[1737851539312,0.36123839,256.04,255.91,5.4079]
[1737851539914,3.9057,256.03,255.91,5.4079]
[1737851540252,0.36123839,256.02,255.91,5.4079]
[1737851541013,3.906,256.01,255.91,5.4079]
[1737851541212,76.26123839,256.0,255.91,5.4079]
[1737851541439,75.9,255.99,255.91,5.4079]
[1737851543011,75.9,255.99,255.92,23.776884]
[1737851545055,75.9,255.99,255.93,3.9073]
[1737851545546,75.9,256.04,255.97,20.0]
[1737851545709,80.9,256.05,255.97,20.0]
[1737851546858,156.8,256.11,256.01,20.0]
[1737851547156,75.9,256.1,256.03,20.0]
[1737851547650,75.9,256.1,256.02,1.6208]
[1737851547957,75.9,256.1,256.03,23.9057]
[1737851549874,75.9,256.13,256.04,23.776884]
[1737851550173,75.9,256.16,256.07,20.0]
[1737851550664,75.9,256.16,256.08,23.776884]
[1737851551345,156.8,256.24,256.11,20.0]
[1737851551555,157.16123839,256.23,256.12,3.9044]
[1737851551756,156.8,256.23,256.12,3.9044]
[1737851552037,0.36123839,256.22,256.12,3.9044]
[1737851553054,4.26413839,256.22,256.12,3.9044]
[1737851555069,75.9,256.21,256.12,3.9044]
[1737851555535,75.9,256.21,256.13,8.113]
[1737851555744,75.9,256.22,256.14,23.776884]
[1737851556247,75.9,256.22,256.17,20.0]
[1737851556445,75.9,256.25,256.17,20.0]
[1737851556670,79.802,256.28,256.17,20.0]
[1737851557261,79.802,256.28,256.18,3.9035]
[1737851557663,75.9,256.27,256.18,3.9035]
[1737851558371,79.8021,256.27,256.18,3.9035]
[1737851559446,80.16333839,256.27,256.17,20.0]
[1737851559870,80.16333839,256.27,256.14,3.904]
[1737851560178,89.91863839,256.27,256.13,8.113]
[1737851560379,156.8,256.26,256.13,8.113]
[1737851560545,0.36123839,256.25,256.13,8.113]
[1737851561073,20.0,256.23,256.13,1.5169]
[1737851561277,20.0,256.18,256.07,6.4565]
[1737851561484,20.0,256.14,256.0,8.0057]
[1737851561688,76.26123839,256.13,256.0,8.0057]
[1737851562778,79.8044,256.12,256.0,8.0057]
[1737851562943,0.36123839,256.11,256.0,8.0057]
[1737851563365,0.36123839,256.11,256.0,11.9118]
[1737851565279,4.26583839,256.11,256.0,11.9118]
[1737851566996,75.9,256.1,256.0,11.9118]
[1737851567366,75.9,256.1,256.04,20.0]
[1737851568788,75.9,256.1,256.03,20.0]
[1737851569561,75.9,256.1,256.04,3.9056]
[1737851571170,75.9,256.1,256.06,3.9053]
[1737851571367,75.9,256.16,256.06,3.9053]
[1737851571563,75.9,256.15,256.1,20.0]
[1737851572679,75.9,256.15,256.11,3.9045]
[1737851573291,75.9,256.15,256.0,8.0057]
[1737851573292,0.36123839,256.14,256.01,3.906]
[1737851573467,0.36123839,256.14,256.02,23.776884]
[1737851573670,0.36123839,256.14,256.05,20.0]
[1737851574283,4.26543839,256.14,256.05,20.0]
[1737851574895,4.26543839,256.14,256.02,3.9058]
[1737851575271,4.26543839,256.14,256.0,8.0057]
[1737851575472,156.8,256.13,256.0,8.0057]
[1737851575671,0.36123839,256.12,256.0,8.0057]
[1737851575895,0.36123839,256.12,256.0,11.9119]
[1737851576694,75.9,256.11,256.0,8.0057]
[1737851576908,0.36123839,256.1,256.0,8.0057]
[1737851577403,75.9,256.09,256.0,21.5492]
[1737851577589,0.36123839,256.08,256.0,21.5492]
[1737851577786,75.9,256.07,256.0,21.5492]
[1737851577990,3.9053,256.06,256.0,21.5492]
[1737851580982,75.9,256.05,255.94,6.2799]
[1737851581178,76.26123839,256.04,255.94,6.2799]
[1737851583106,3.9057,256.03,255.94,6.2799]
[1737851584193,76.26123839,256.04,255.94,10.1869]
[1737851584382,75.9,256.04,255.97,20.0]
[1737851584783,75.9,256.03,255.97,20.0]
[1737851585303,75.9,256.03,255.97,23.9065]
[1737851587907,75.93,256.08,256.01,20.0]
[1737851588298,75.93,256.08,255.98,23.776884]
[1737851589001,75.93,256.08,256.01,20.0]
[1737851589302,75.93,256.08,256.02,3.9059]
[1737851589502,75.93,256.08,256.01,20.0]
[1737851589815,75.93,256.08,256.0,3.9061]
[1737851590110,0.36123839,256.07,256.0,3.9061]
[1737851591301,75.93,256.08,256.01,20.0]
[1737851591497,75.93,256.08,256.01,23.906]
[1737851594320,0.36123839,256.07,255.94,6.2799]
[1737851594514,0.36123839,256.07,255.82,1.6542]
[1737851594515,45.776884,256.02,255.82,1.6542]
[1737851594718,1.0,255.97,255.82,1.6542]
[1737851594925,1.0,255.72,255.68,11.63777886]
[1737851595239,13.6883,255.69,255.64,3.20951841]
[1737851595401,4.27213839,255.69,255.64,3.20951841]
[1737851595603,75.9,255.68,255.64,3.20951841]
[1737851595814,0.36123839,255.67,255.64,3.20951841]
[1737851596623,75.9,255.66,255.59,3.67]
[1737851596807,75.9,255.72,255.6,20.0]
[1737851597011,75.9,255.71,255.6,20.0]
[1737851597209,132.06035928,255.68,255.61,20.0]
[1737851598213,132.06035928,255.68,255.62,20.0]
[1737851598421,132.06035928,255.68,255.63,43.776884]
[1737851598815,132.06035928,255.67,255.63,43.776884]
[1737851599403,7.92362155,255.66,255.63,34.10942696]
[1737851599605,7.92362155,255.66,255.59,3.67]
[1737851600009,63.38897245,255.66,255.59,3.67]
[1737851600197,63.38897245,255.66,255.54,1.0]
[1737851600401,63.38897245,255.66,255.47,2.6542]
[1737851600607,63.38897245,255.66,255.48,13.6997]
[1737851600807,7.92362155,255.65,255.48,13.6997]
[1737851601016,7.92362155,255.65,255.45,1.0]
[1737851601604,7.92362155,255.64,255.45,1.0]
[1737851602002,7.92362155,255.64,255.45,20.5728]
[1737851602422,55.4653509,255.66,255.48,21.0]
[1737851602423,7.92362155,255.63,255.48,21.0]
[1737851602607,7.92362155,255.63,255.5,1.0]
[1737851602810,7.92362155,255.63,255.45,0.82445539]
[1737851603020,7.92362155,255.63,255.44,11.7]
[1737851603216,9.92362155,255.63,255.46,19.5725]
[1737851603416,11.90017554,255.53,255.46,19.5725]
[1737851603732,47.5082439,255.59,255.46,19.5725]
[1737851603909,47.5082439,255.59,255.47,1.6542]
[1737851604221,47.5082439,255.59,255.48,13.6997]
[1737851604627,2.806e-05,255.51,255.48,13.6997]
[1737851605000,2.806e-05,255.51,255.49,20.0]
[1737851605205,8.419e-05,255.55,255.49,20.0]
[1737851605527,8.419e-05,255.55,255.53,20.0]
[1737851605714,71.24355617,255.59,255.53,20.0]
[1737851606524,31.05335617,255.59,255.54,20.0]
[1737851607326,1.0,255.65,255.54,20.0]
[1737851607631,1.0,255.64,255.58,20.0]
[1737851608826,44.90052216,255.66,255.58,20.0]
[1737851609215,24.85912216,255.66,255.58,20.0]
[1737851609406,5.00202216,255.66,255.58,20.0]
[1737851609608,2.216e-05,255.66,255.56,20.0]
[1737851611310,2.216e-05,255.66,255.56,21.6731264]
[1737851611726,2.216e-05,255.66,255.6,20.0]
[1737851612241,2.216e-05,255.66,255.6,26.2384]
[1737851612939,0.03,255.71,255.64,20.0]
[1737851613248,3.02,255.89,255.64,20.0]
[1737851613249,2.0,255.8,255.64,20.0]
[1737851613442,1.0,255.8,255.65,1.5081]
[1737851614219,2.0,255.8,255.65,1.5081]
[1737851614412,2.0,255.82,255.69,20.0]
[1737851615221,2.0,255.82,255.7,20.0]
[1737851615420,2.0,255.82,255.69,20.0]
[1737851615630,1.0,255.8,255.69,20.0]
[1737851616832,1.0,255.82,255.69,20.0]
[1737851616833,2.0,255.82,255.69,20.0]
[1737851617314,1.0,255.82,255.69,20.0]
[1737851618630,2.0,255.84,255.69,20.0]
[1737851618838,1.0,255.84,255.69,21.6956757]
[1737851619221,1.0,255.87,255.7,23.776884]
[1737851620143,2.0,255.87,255.7,23.776884]
[1737851621426,1.0,255.84,255.69,1.6956757]
[1737851621628,1.0,255.81,255.67,20.0]
[1737851622140,1.0,255.81,255.68,20.0]
[1737851622517,2.0,255.83,255.68,20.0]
[1737851623043,1.0,255.83,255.69,23.776884]
[1737851623215,1.0,255.85,255.72,20.0]
[1737851623418,1.0,255.86,255.72,20.0]
[1737851624137,1.0,255.86,255.76,20.0]
[1737851633949,1.0,255.86,255.76,21.71518907]
[1737851634424,1.0,255.86,255.77,20.0]
[1737851634628,1.0,255.87,255.77,20.0]
[1737851635745,0.03,255.86,255.77,20.0]
[1737851641854,0.03,255.86,255.79,20.0]
[1737851643461,0.03,255.86,255.77,20.0]
[1737851648556,1.0,255.84,255.76,1.71518907]
[1737851648735,1.0,255.78,255.66,6.116]
[1737851648932,2.0,255.76,255.63,12.04521307]
[1737851649445,2.0,255.76,255.66,20.0]
[1737851649651,1.0,255.73,255.63,14.22056013]
[1737851649841,2.0,255.76,255.63,14.22056013]
[1737851650042,1.0,255.72,255.66,20.0]
[1737851650853,1.0,255.71,255.63,14.22056013]
[1737851651063,1.0,255.7,255.63,14.22056013]
[1737851651246,1.0,255.7,255.63,2.17534706]
[1737851651556,1.0,255.7,255.59,1.6383]
[1737851653565,1.0,255.7,255.59,3.80361102]
[1737851654241,1.0,255.73,255.59,3.80361102]
[1737851655545,7.0304,255.75,255.59,3.80361102]
[1737851655759,7.0304,255.75,255.63,20.0]
[1737851655947,2.0,255.72,255.63,20.0]
[1737851656151,1.0,255.7,255.63,20.0]
[1737851656552,1.0,255.7,255.59,2.16531102]
[1737851656766,1.0,255.7,255.58,20.0]
[1737851661573,2.0,255.72,255.58,20.0]
[1737851662871,3.5774,255.74,255.62,20.0]
[1737851663864,1.0,255.72,255.6,20.0]
[1737851664572,3.5774,255.74,255.6,20.0]
[1737851665450,1.0,255.72,255.6,20.0]
[1737851669380,1.0,255.73,255.64,20.0]
[1737851670083,7.0304,255.75,255.64,20.0]
[1737851671169,1.0,255.73,255.64,20.0]
[1737851671581,7.0304,255.75,255.64,20.0]
[1737851671868,0.03,255.72,255.64,20.0]
[1737851674657,0.03,255.72,255.64,22.00179685]
[1737851675282,129.049,255.71,255.64,0.34759685]
[1737851675584,1.0,255.6,255.53,2.03857898]
[1737851675752,1.0,255.58,255.52,12.04521307]
[1737851676381,1.0,255.56,255.52,12.04521307]
[1737851676568,1.0,255.56,255.55,20.0]
[1737851676762,1.0,255.56,255.52,12.04521307]
[1737851676984,1.0,255.56,255.5,2.06586243]
[1737851677182,1.0,255.6,255.42,23.776884]
[1737851677388,1.0,255.61,255.44,23.776884]
[1737851677581,1.0,255.61,255.51,20.0]
[1737851677791,1.0,255.61,255.48,23.776884]
[1737851678279,1.0,255.61,255.51,20.0]
[1737851680687,1.0,255.63,255.49,20.0]
[1737851680986,1.0,255.6,255.54,20.0]
[1737851681180,1.0,255.59,255.54,20.0]
[1737851681381,1.0,255.59,255.44,23.776884]
[1737851681789,1.0,255.56,255.44,23.776884]
[1737851682272,1.0,255.55,255.37,31.88125728]
[1737851682481,1.0,255.54,255.37,24.9864]
[1737851682784,1.0,255.54,255.41,20.0]
[1737851683176,1.0,255.54,255.42,20.0]
[1737851684384,1.0,255.56,255.42,20.0]
[1737851684689,1.0,255.57,255.42,20.0]
[1737851686787,7.349,255.58,255.46,20.0]
[1737851688291,6.349,255.58,255.46,20.0]
[1737851688673,6.349,255.58,255.5,20.0]
[1737851688879,1.0,255.62,255.5,20.0]
[1737851691897,7.0759,255.64,255.54,20.0]
[1737851692102,6.0759,255.64,255.54,20.0]
[1737851694398,6.0759,255.64,255.53,20.0]
[1737851694891,6.0759,255.64,255.54,23.776884]
[1737851695083,1.0,255.66,255.54,23.776884]
[1737851695696,2.0,255.68,255.54,23.776884]
[1737851696375,0.03,255.64,255.54,23.776884]
[1737851699401,2.241,255.47,255.38,9.28714076]
[1737851699584,1.0,255.43,255.42,24.35043005]
[1737851699782,2.0,255.43,255.42,24.35043005]
[1737851700098,25.776884,255.43,255.42,24.35043005]
[1737851703199,25.776884,255.43,255.24,2.03368231]
[1737851703406,23.776884,255.42,255.25,20.0]
[1737851703703,1.0,255.34,255.14,4.8969]
[1737851703910,1.0,255.33,255.14,4.8969]
[1737851704083,1.0,255.36,255.16,23.776884]
[1737851704477,1.0,255.36,255.24,23.776884]
[1737851704702,2.0,255.38,255.31,20.0]
[1737851704888,1.0,255.38,255.31,20.0]
[1737851705388,2.0,255.38,255.31,20.0]
[1737851705893,1.0,255.38,255.31,20.0]
[1737851706984,1.0,255.41,255.31,20.0]
[1737851707386,1.0,255.41,255.28,20.0]
[1737851707587,1.0,255.44,255.33,20.0]
[1737851708801,1.0,255.43,255.33,20.0]
[1737851710403,1.0,255.42,255.33,20.0]
[1737851710615,1.0,255.42,255.25,2.05586549]
[1737851710616,1.0,255.4,255.26,20.0]
[1737851710813,1.0,255.37,255.26,20.0]
[1737851711199,1.0,255.37,255.25,2.05586549]
[1737851711397,1.0,255.37,255.28,23.776884]
[1737851711622,1.0,255.35,255.2,35.506884]
[1737851711804,1.0,255.35,255.2,38.0627244]
[1737851712024,1.0,255.35,255.31,20.0]
[1737851712507,1.0,255.37,255.31,20.0]
[1737851713988,1.0,255.34,255.31,20.0]
[1737851715105,15.01457702,255.46,255.15,48.0226]
[1737851715106,1.0,255.3,255.15,6.2926]
[1737851715285,1.0,255.29,255.15,8.87766764]
[1737851715704,1.0,255.28,255.15,8.87766764]
[1737851716106,1.0,255.3,255.23,20.0]
[1737851716309,8.5117,255.33,255.27,20.0]
[1737851717213,7.5117,255.33,255.27,20.0]
[1737851717716,8.5117,255.33,255.27,20.0]
[1737851718808,7.5117,255.33,255.27,20.0]
[1737851719193,6.5117,255.33,255.27,20.0]
[1737851720099,7.5117,255.33,255.27,20.0]
[1737851721921,8.5117,255.33,255.27,20.0]
[1737851723714,7.5117,255.33,255.27,20.0]
[1737851723896,8.5117,255.33,255.27,20.0]
[1737851724096,7.5117,255.33,255.27,20.0]
[1737851725321,2.0,255.35,255.27,20.0]
[1737851726623,2.0,255.35,255.31,20.0]
[1737851726814,1.0,255.35,255.31,20.0]
[1737851727634,2.0,255.37,255.31,20.0]
[1737851727809,1.0,255.37,255.31,20.0]
[1737851728123,2.0,255.37,255.31,20.0]
[1737851728298,1.0,255.35,255.31,20.0]
[1737851731734,1.0,255.37,255.31,20.0]
[1737851732826,1.0,255.37,255.35,20.0]
[1737851735809,2.0,255.41,255.35,20.0]
[1737851736011,1.0,255.37,255.35,20.0]
[1737851738617,1.0,255.32,255.17,1.6505]
[1737851738810,1.0,255.34,255.17,1.6505]
[1737851739026,1.0,255.32,255.18,23.776884]
[1737851739227,1.0,255.3,255.18,23.776884]
[1737851739425,1.0,255.3,255.25,20.0]
[1737851739627,1.0,255.3,255.29,20.0]
[1737851740135,1.0,255.31,255.29,20.0]
[1737851740516,1.0,255.34,255.29,20.0]
[1737851746140,1.0,255.36,255.3,23.776884]
[1737851746344,1.0,255.36,255.33,20.0]
[1737851758659,1.0,255.36,255.34,23.776884]
[1737851758969,1.0,255.37,255.31,20.0]
[1737851759861,2.0,255.37,255.31,20.0]
[1737851760079,1.0,255.32,255.24,1.5212]
[1737851760282,1.0,255.3,255.24,1.5212]
[1737851760458,1.0,255.3,255.22,12.22821143]
[1737851760764,1.0,255.28,255.22,12.22821143]
[1737851761171,1.0,255.28,255.26,20.0]
[1737851761551,1.0,255.31,255.26,20.0]
[1737851761754,1.0,255.33,255.26,20.0]
[1737851762748,1.0,255.33,255.27,23.776884]
[1737851763170,1.0,255.33,255.3,20.0]
[1737851774079,1.0,255.33,255.22,23.776884]
[1737851774284,1.0,255.33,255.26,23.776884]
[1737851774454,1.0,255.33,255.29,20.0]
[1737851774656,1.0,255.3,255.29,20.0]
[1737851775055,1.0,255.3,255.21,20.0]
[1737851775581,1.0,255.3,255.25,20.0]
[1737851775981,1.0,255.28,255.25,20.0]
[1737851776459,1.0,255.26,255.25,20.0]
[1737851777274,1.0,255.26,255.18,4.37835906]
[1737851777505,1.0,255.24,255.18,4.37835906]
[1737851777695,1.0,255.24,255.19,43.776884]
[1737851777898,1.0,255.24,255.21,20.0]
[1737851778100,1.0,255.24,255.22,23.776884]
[1737851778309,1.0,255.26,255.22,23.776884]
[1737851778613,1.0,255.28,255.22,23.776884]
[1737851780607,1.0,255.26,255.18,1.5212]
[1737851780804,1.0,255.25,255.18,1.5212]
[1737851781305,1.0,255.21,255.19,20.0]
[1737851781493,1.0,255.21,255.12,12.22821143]
[1737851781689,1.0,255.19,255.12,13.87811143]
[1737851781897,1.0,255.19,255.12,1.6499]
[1737851782265,1.0,255.19,255.13,43.776884]
[1737851782465,1.0,255.19,255.13,20.0]
[1737851782878,1.0,255.25,255.17,20.0]
[1737851783181,1.0,255.25,255.12,4.42656178]
[1737851783182,1.0,255.26,255.21,20.0]
[1737851783392,1.0,255.24,255.21,20.0]
[1737851783577,1.0,255.22,255.13,20.0]
[1737851783763,1.0,255.2,255.13,20.0]
[1737851784182,1.0,255.2,255.13,43.776884]
[1737851784965,1.0,255.19,255.13,43.776884]
[1737851785460,2.0,255.22,255.13,43.776884]
[1737851785667,1.0,255.19,255.13,43.776884]
[1737851786885,1.0,255.19,255.12,2.77666178]
[1737851787114,1.0,255.19,255.07,20.0]
[1737851787693,1.0,255.2,255.15,20.0]
[1737851790490,1.0,255.2,255.19,20.0]
[1737851790797,1.0,255.23,255.19,20.0]
[1737851791484,2.0,255.21,255.07,20.0]
[1737851791794,1.0,255.22,255.15,20.0]
[1737851792176,1.0,255.21,255.15,20.0]
[1737851792375,1.0,255.2,255.15,20.0]
[1737851792698,1.0,255.18,255.15,20.0]
[1737851794097,1.0,255.16,255.15,20.0]
[1737851795803,1.0,255.18,255.15,43.776884]
[1737851795987,1.0,255.21,255.15,20.0]
[1737851798982,1.0,255.21,255.16,20.0]
[1737851799197,1.0,255.2,255.16,20.0]
[1737851799498,1.0,255.21,255.16,20.0]
[1737851799875,1.0,255.18,255.13,2.84519675]
[1737851800095,1.0,255.2,255.07,20.0]
[1737851800302,1.0,255.2,255.15,20.0]
[1737851800504,1.0,255.22,255.15,20.0]
[1737851801273,1.0,255.22,255.04,35.37435939]
[1737851801274,1.0,255.22,255.19,20.0]
[1737851801478,1.0,255.27,255.19,20.0]
[1737851801479,1.0,255.24,255.19,20.0]
[1737851806887,1.0,255.34,255.24,20.0]
[1737851807087,2.0,255.34,255.24,20.0]
[1737851807288,1.0,255.3,255.24,20.0]
[1737851807487,1.0,255.29,255.25,20.0]
[1737851808017,1.0,255.32,255.25,20.0]
[1737851808018,1.0,255.31,255.25,20.0]
[1737851808387,1.0,255.3,255.25,20.0]
[1737851808597,1.0,255.31,255.25,20.0]
[1737851809645,1.0,255.31,255.25,33.7211921]
[1737851809828,2.0,255.34,255.29,20.0]
[1737851810123,1.0,255.34,255.29,20.0]
[1737851810783,1.0,255.34,255.3,23.776884]
[1737851811590,1.0,255.34,255.33,20.0]
[1737851814988,1.0,255.36,255.29,16.36995952]
[1737851815191,1.0,255.34,255.33,20.0]
[1737851816099,2.0,255.34,255.32,20.0]
[1737851818099,1.0,255.34,255.32,20.0]
[1737851821328,1.0,255.37,255.33,43.776884]
[1737851821510,1.0,255.44,255.35,23.776884]
[1737851821710,1.0,255.46,255.42,20.0]
[1737851822432,1.0,255.48,255.42,20.0]
[1737851823929,0.03,255.5,255.46,20.0]
[1737851827242,1.0,255.44,255.4,6.69282076]
[1737851827417,1.0,255.41,255.34,1.6133]
[1737851828224,1.0,255.41,255.38,20.0]
[1737851831145,1.0,255.44,255.38,20.0]
[1737851831347,1.0,255.46,255.39,23.776884]
[1737851831646,1.0,255.48,255.42,20.0]
[1737851832026,1.03,255.5,255.43,23.776884]
[1737851832226,0.03,255.46,255.45,20.0]
[1737851833459,1.0,255.44,255.34,8.30612076]
[1737851833632,1.0,255.42,255.34,8.30612076]
[1737851833831,0.03,255.46,255.38,20.0]
[1737851833832,1.0,255.44,255.38,20.0]
[1737851834044,1.0,255.4,255.34,8.30612076]
[1737851834649,1.0,255.4,255.35,23.776884]
[1737851835645,1.0,255.4,255.38,20.0]
[1737851838131,0.03,255.46,255.27,1.5749]
[1737851838132,1.0,255.35,255.27,1.5749]
[1737851838332,1.0,255.32,255.27,1.5749]
[1737851839755,1.0,255.32,255.31,20.0]
[1737851841049,1.0,255.29,255.27,1.5749]
[1737851841248,1.0,255.29,255.21,1.5749]
[1737851841447,1.0,255.34,255.26,43.776884]
[1737851843762,1.0,255.3,255.26,43.776884]
[1737851846960,1.0,255.32,255.26,43.776884]
[1737851847160,1.0,255.34,255.26,43.776884]
[1737851847859,1.0,255.36,255.26,43.776884]
[1737851849235,1.0,255.38,255.26,43.776884]
[1737851850148,1.0,255.38,255.26,50.39748254]
[1737851850451,0.03,255.4,255.26,50.39748254]
[1737851850452,1.03,255.4,255.26,50.39748254]
[1737851851865,1.03,255.4,255.31,20.0]
[1737851852362,1.03,255.4,255.35,20.0]
[1737851855765,1.03,255.4,255.36,23.776884]
[1737851858860,1.03,255.4,255.27,6.62059854]
[1737851858861,1.0,255.33,255.27,6.62059854]
[1737851859079,0.03,255.4,255.26,1.6138]
[1737851859080,1.0,255.27,255.26,1.6138]
[1737851859280,1.0,255.25,255.23,12.22821143]
[1737851861452,1.0,255.25,255.21,20.0]
[1737851861949,1.0,255.25,255.22,20.0]
[1737851863289,1.0,255.27,255.22,20.0]
[1737851865564,1.0,255.29,255.26,20.0]
[1737851865868,1.0,255.31,255.26,20.0]
[1737851867670,1.0,255.33,255.3,20.0]
[1737851867859,1.0,255.35,255.3,20.0]
[1737851874995,0.03,255.36,255.3,20.0]
[1737851875904,0.03,255.36,255.31,23.776884]
[1737851877507,1.0,255.35,255.31,23.776884]
[1737851878800,1.0,255.35,255.34,20.0]
[1737851878996,0.03,255.36,255.34,20.0]
[1737851880000,0.03,255.36,255.33,20.0]
[1737851880195,0.03,255.36,255.34,23.776884]
[1737851881589,0.03,255.36,255.3,1.6529]
[1737851885188,0.03,255.36,255.34,23.776884]
[1737851887411,0.03,255.36,255.34,20.0]
[1737851888787,0.03,255.4,255.34,20.0]
[1737851889112,1.0,255.45,255.38,20.0]
[1737851889289,0.03,255.46,255.35,23.776884]
[1737851889290,0.03,255.46,255.42,20.0]
[1737851889485,0.03,255.46,255.45,20.0]
[1737851889690,0.03,255.46,255.45,43.776884]
[1737851894005,1.0,255.49,255.45,43.776884]
[1737851895009,0.03,255.46,255.45,43.776884]
[1737851895191,1.0,255.49,255.45,43.776884]
[1737851896802,1.0,255.49,255.45,20.0]
[1737851897016,1.0,255.47,255.46,20.0]
[1737851897325,1.0,255.47,255.46,43.776884]
[1737851897922,1.0,255.45,255.41,1.5135]
[1737851898213,1.0,255.45,255.31,35.67821143]
[1737851898214,1.0,255.4,255.34,1.5135]
[1737851898416,1.0,255.38,255.34,1.5135]
[1737851899002,1.0,255.36,255.34,1.5135]
[1737851899198,1.0,255.36,255.3,6.4518]
[1737851899406,122.7,255.47,255.3,0.063]
[1737851899407,1.0,255.34,255.3,0.063]
[1737851900801,1.0,255.34,255.32,23.776884]
[1737851902138,0.36123839,255.46,255.31,20.0]
[1737851902139,1.0,255.36,255.31,20.0]
[1737851902341,1.0,255.38,255.35,20.0]
[1737851904234,1.0,255.38,255.36,23.776884]
[1737851904442,1.0,255.4,255.36,23.776884]
[1737851904932,1.0,255.38,255.36,23.776884]
[1737851905730,1.0,255.36,255.31,20.0]
[1737851907145,1.0,255.36,255.35,43.776884]
[1737851907312,1.0,255.38,255.35,43.776884]
[1737851908323,1.0,255.38,255.36,23.776884]
[1737851908841,1.0,255.4,255.35,20.0]
[1737851909121,1.0,255.42,255.35,20.0]
[1737851909723,1.0,255.42,255.32,20.0]
[1737851909933,1.0,255.44,255.32,20.0]
[1737851911003,1.0,255.44,255.37,20.0]
[1737851911821,1.0,255.44,255.38,23.776884]
[1737851912029,1.0,255.44,255.42,23.776884]
[1737851915235,1.0,255.44,255.38,23.776884]
[1737851915414,1.0,255.44,255.42,23.776884]
[1737851915842,1.0,255.44,255.41,20.0]
[1737851916048,1.0,255.44,255.42,23.776884]
[1737851916719,0.03,255.47,255.41,20.0]
[1737851916720,1.0,255.46,255.41,20.0]
[1737851916919,1.0,255.46,255.45,20.0]
[1737851918036,1.0,255.46,255.45,43.776884]
[1737851918227,0.03,255.47,255.45,43.776884]
[1737851919240,0.03,255.47,255.46,23.776884]
[1737851919733,0.03,255.47,255.39,43.776884]
[1737851919957,0.03,255.47,255.46,23.776884]
[1737851920451,0.03,255.47,255.41,43.776884]
[1737851922151,1.03,255.5,255.41,43.776884]
[1737851922346,0.03,255.5,255.41,43.776884]
[1737851922649,0.03,255.5,255.49,20.0]